[Event "Nakhchivan Open 2022"]
[Site "Nakhchivan"]
[Date "2022.05.12"]
[Round "7.4"]
[White "Ahmad, Khagan"]
[Black "Asgari, Morteza"]
[Result "0-1"]
[ECO "C41"]
[WhiteElo "2178"]
[BlackElo "2244"]
[Annotator "TA"]
[PlyCount "88"]
[EventDate "2022.05.08"]
[EventType "swiss"]
[EventCountry "AZE"]
[SourceTitle "playchess.com"]
[Source "ChessBase"]
[SourceQuality "1"]
[TimeControl "5400+30"]

{[%evp 17,88,22,19,0,0,0,7,0,-12,-37,-21,-25,-29,-27,-23,-37,-29,-51,-49,-50,-47,-190,-187,-466,-452,-640,-645,-617,-269,-258,-264,-539,-531,-531,-511,-642,-641,-641,-627,-841,-837,-894,-879,-884,-876,-875,-873,-866,-862,-855,-855,-843,-842,-887,-881,-913,-916,-1396,-1381,-1381,-1374,-1358,-1351,-1227,-952,-1225,-1192,-1170,-1143,-7917,-7735,-6070,-5953]} 1. e4 {[%emt 0:00:01]} d6 {[%emt 0:00:43]} 2. Nc3 {[%emt 0:00:45]} e5 {[%emt 0:00:25]} 3. Nf3 {[%emt 0:00:19]} Nf6 {[%emt 0:00:20]} 4. d4 {[%emt 0:00:53]} Nbd7 {[%emt 0:00:12]} 5. Bc4 {[%emt 0:00:12]} Be7 {[%emt 0:00:10]} 6. O-O {[%emt 0:00:10]} O-O {[%emt 0:00:07]} 7. a4 {[%emt 0:00:07][%cal Ba2a4,Ba4a5][%mdl 32]} c6 {[%emt 0:00:07]} 8. a5 {[%emt 0:00:07]} Qc7 {[%emt 0:02:14]} 9. Re1 {[%emt 0:01:46]} Rb8 {[%emt 0:01:09]} 10. Be3 {[%emt 0:01:37] C41: Philidor Defence.} b5 {[%emt 0:00:57]} 11. axb6 {[%emt 0:00:57]} axb6 {[%emt 0:00:11]} 12. d5 {[%emt 0:05:16] The position is equal.} b5 $1 {[%emt 0:05:56] [#]} 13. dxc6 $146 {[%emt 0:00:31]} (13. Ra7 {feels hotter.} Rb7 14. Rxb7 Bxb7 15. dxc6 Bxc6 16. Bxb5 Nxe4 17. Nxe4 Bxe4 18. Bxd7 Bxf3 19. Qxf3 Qxd7 20. Bd2) ({Predecessor:} 13. Ra7 Rb7 14. Rxb7 Bxb7 15. dxc6 bxc4 16. cxb7 Qxb7 17. Bc1 Nc5 18. Nd2 Rc8 19. Qe2 {0-1 (44) Celik,E (1864)-Tosic,N (2075) Paracin 2018}) 13... bxc4 {[%emt 0:02:55]} 14. cxd7 {[%emt 0:00:05]} Bxd7 {[%emt 0:01:05]} 15. Bg5 {[%emt 0:02:07]} Be6 {[%emt 0:01:23]} 16. Bxf6 {[%emt 0:01:27]} Bxf6 {[%emt 0:00:37]} 17. Ra6 {[%emt 0:00:18]} Rxb2 {[%emt 0:12:36]} 18. Rxd6 {[%emt 0:04:42][%cal Oc3d5]} Be7 {[%emt 0:09:27]} 19. Rd2 {[%emt 0:04:20] Loses the game.} ({White should play} 19. Ra6 $15) 19... Bb4 $36 {[%emt 0:03:07][%mdl 2048] Black is in control.} 20. Re3 {[%emt 0:00:20]} (20. Nd5 Bxd5 21. c3) 20... Qa5 {[%emt 0:02:30]} 21. Rd5 {[%emt 0:10:55]} (21. Nd5 $142 Bxd2 22. Nxd2 Bxd5 23. exd5 Qxd5 24. h4) 21... Bxd5 {[%emt 0:02:46]} 22. Nxd5 {[%emt 0:00:15]} Qa2 {[%emt 0:00:50]} (22... Ra2 $142 {aiming for ...Ra1.} 23. Nxb4 Ra1 24. Qxa1 Qxa1+ 25. Re1 Qb2) 23. Nxb4 Rxb4 {[%emt 0:03:03]} 24. Re1 $2 {[%emt 0:02:08]} (24. Qd2 {is a better defense.} Rb2 25. Re2) 24... Rb2 {[%emt 0:04:04][%cal Bb4b2,Bb2c2,Bc2d2][%mdl 32] Black is clearly winning.} 25. Nxe5 {[%emt 0:11:13]} Rxc2 {[%emt 0:02:16]} 26. Rf1 {[%emt 0:00:44]} c3 {[%emt 0:07:01][%cal Bc4c3,Bc3c2][%mdl 32] [#] ...Rb2 is the strong threat.} 27. Qd3 {[%emt 0:08:35]} Qb3 {[%emt 0:05:45]} 28. h4 {[%emt 0:01:45]} Rd2 {[%emt 0:00:28]} 29. Qf3 {[%emt 0:03:25]} Rb2 {[%emt 0:06:19]} 30. Kh2 {[%emt 0:07:50]} c2 {[%emt 0:01:28] [#] Threatens to win with ...Qxf3.} 31. Rc1 {[%emt 0:00:48]} Qxf3 {[%emt 0:02:34]} 32. Nxf3 {[%emt 0:00:04][%mdl 4096] Endgame KRR-KRN} Rd8 {[%emt 0:00:33] Strongly threatening ...Rd1.} 33. Ne1 {[%emt 0:01:12]} Rb1 {[%emt 0:00:59]} 34. Rxc2 {[%emt 0:00:36]} Rxe1 {[%emt 0:00:13]} 35. f3 {[%emt 0:00:01]} h6 {[%emt 0:00:35]} 36. Kg3 {[%emt 0:00:03]} Red1 {[%emt 0:00:13] White must now prevent ...R8d2.} 37. h5 {[%emt 0:00:38]} R1d2 {[%emt 0:00:21]} 38. Rc3 {[%emt 0:00:22]} R8d3 {[%emt 0:00:37]} 39. Rc8+ {[%emt 0:00:21]} Kh7 {[%emt 0:00:09]} 40. Rc7 {[%emt 0:00:15]} Rd7 {[%emt 0:00:23]} 41. Rc1 {[%emt 0:00:50]} Re2 {[%emt 0:00:10]} 42. Kh3 {[%emt 0:00:25]} Rdd2 {[%emt 0:00:48]} 43. g4 {[%emt 0:00:09]} Rd3 {[%emt 0:00:09][%csl LRe4,LRf3]} 44. Kg3 {[%emt 0:00:08]} Rxe4 {[%emt 0:00:10] Weighted Error Value: White=0.61/Black=0.12 (very precise)} 0-1

[Event "Nakhchivan Open 2022"]
[Site "Nakhchivan"]
[Date "2022.05.12"]
[Round "7.5"]
[White "Azadaliyev, Jahandar"]
[Black "Zeynalli, Rashad"]
[Result "1-0"]
[ECO "E06"]
[WhiteElo "2088"]
[BlackElo "2226"]
[Annotator "TA"]
[PlyCount "129"]
[EventDate "2022.05.08"]
[EventType "swiss"]
[EventCountry "AZE"]
[SourceTitle "playchess.com"]
[Source "ChessBase"]
[SourceQuality "1"]
[TimeControl "5400+30"]

{[%evp 13,129,0,2,-31,-14,-13,0,0,0,0,0,0,12,12,31,31,36,40,32,36,74,61,60,58,66,57,76,89,131,131,117,122,181,184,184,185,197,199,189,193,179,100,90,77,77,77,77,77,78,76,71,68,110,98,174,179,258,258,251,255,279,275,279,279,275,272,272,256,270,249,322,337,86,367,402,394,387,387,376,282,376,363,425,278,264,159,466,417,290,290,290,283,547,425,547,547,539,532,622,525,603,488,622,614,591,520,421,366,502,368,502,479,566,521,499,401,868,698]} 1. d4 {[%emt 0:00:02]} Nf6 {[%emt 0:00:04]} 2. c4 {[%emt 0:00:21]} e6 {[%emt 0:00:11]} 3. Nf3 {[%emt 0:00:34]} d5 {[%emt 0:00:08]} 4. g3 {[%emt 0:00:18]} Be7 {[%emt 0:00:07]} 5. Bg2 {[%emt 0:00:11]} O-O {[%emt 0:00:10]} 6. O-O {[%emt 0:00:32]} dxc4 {[%emt 0:00:09]} 7. Qc2 {[%emt 0:00:32]} b5 {[%emt 0:00:11]} 8. Ne5 {[%emt 0:04:02] E05: Open Catalan: 5 Nf3 Be7.} Nd5 {[%emt 0:03:40]} 9. a4 {[%emt 0:05:54]} c6 {[%emt 0:02:50]} 10. axb5 {[%emt 0:03:47] The position is equal.} cxb5 {[%emt 0:00:12]} 11. Nc3 {[%emt 0:00:09]} f6 {[%emt 0:03:59]} 12. Ng4 {[%emt 0:05:05]} Qd7 {[%emt 0:02:55]} 13. Be4 $1 $36 {[%emt 0:18:21][%mdl 3072] [#] White has compensation. White is pushing.} f5 $146 {[%emt 0:10:17]} ({Predecessor:} 13... Nxc3 14. Bxa8 Nd5 15. Bxd5 exd5 16. f3 Nc6 17. e3 a5 18. Bd2 Qc7 19. Nf2 Bd6 {0-1 (34) Koutsaftis,E (1611)-Fasching,M (2029) Heraklion 2019}) 14. Ne5 {[%emt 0:00:15]} Qb7 {[%emt 0:00:44]} 15. Bg2 {[%emt 0:02:38]} Nd7 {[%emt 0:04:47]} 16. Ra5 {[%emt 0:04:08]} a6 {[%emt 0:03:08]} 17. Nxd5 {[%emt 0:01:30]} exd5 {[%emt 0:00:33] [#]} 18. Nxc4 $1 {[%emt 0:01:12][%cal Oc1f4][%mdl 64] Pin} Nf6 {[%emt 0:06:02]} 19. Ne5 {[%emt 0:02:58]} Bd7 {[%emt 0:02:52]} 20. Bg5 {[%emt 0:00:49]} Rfc8 {[%emt 0:02:20]} 21. Qb3 {[%emt 0:00:39] White is more active.} Be6 {[%emt 0:00:51]} 22. Nd3 {[%emt 0:15:38]} Ne4 {[%emt 0:08:23]} (22... Bd8 $16 {is a better defense.}) 23. Bxe7 $18 {[%emt 0:02:20]} Qxe7 {[%emt 0:00:23]} 24. Rfa1 {[%emt 0:03:58]} Qd6 {[%emt 0:07:53]} 25. Qa3 {[%emt 0:01:24]} Qxa3 {[%emt 0:00:29]} 26. R5xa3 {[%emt 0:00:48]} Rc6 {[%emt 0:01:24]} 27. Bxe4 {[%emt 0:02:09]} (27. Ra5 $18) 27... dxe4 $16 {[%emt 0:00:59]} 28. Nc5 {[%emt 0:01:19][%cal Ra3a6]} Bc4 {[%emt 0:01:23]} 29. e3 {[%emt 0:00:58][%cal Rc5a6]} b4 {[%emt 0:01:56]} 30. Ra4 {[%emt 0:00:19]} Rb6 {[%emt 0:01:38]} 31. Rc1 {[%emt 0:02:33]} Bd5 {[%emt 0:03:03]} 32. Ra5 {[%emt 0:01:52]} Rc6 {[%emt 0:02:29]} 33. b3 {[%emt 0:00:50]} Be6 {[%emt 0:04:27]} (33... Rb6 $16) 34. Rca1 $18 {[%emt 0:00:50]} Kf7 {[%emt 0:03:29]} (34... Bf7 $142 35. Rb5 (35. Nxa6 Bxb3 36. Nxb4 Rxa5 $16) 35... Rcc8) 35. Nxe6 {[%emt 0:00:44]} (35. Nxa6 Bxb3 36. Nxb4 Rxa5 37. Rxa5 Rc1+ 38. Kg2 Kg6 $16) 35... Rxe6 {[%emt 0:00:11]} 36. Rxf5+ {[%emt 0:00:02][%mdl 4096] Endgame KRR-KRR} Kg6 {[%emt 0:01:15]} 37. Rc5 {[%emt 0:01:59]} Rf6 {[%emt 0:00:01]} 38. Ra4 {[%emt 0:01:47]} Raf8 {[%emt 0:01:09]} 39. Rc2 {[%emt 0:00:09]} ({Weaker is} 39. Rxb4 Rxf2 40. d5 Rf1+ 41. Kg2 R8f2+ 42. Kh3 Rh1 43. Rb6+ (43. Rxe4 $2 {is a self mate.} Rhxh2+ 44. Kg4 h5#) 43... Rf6 $16) 39... Rb8 {[%emt 0:00:38]} 40. Ra5 {[%emt 0:01:34]} Re8 {[%emt 0:03:06]} 41. Rca2 {[%emt 0:00:46]} Rc8 {[%emt 0:01:02]} 42. R5a4 {[%emt 0:00:43]} ({Not} 42. Rxa6 Rc3 $16) 42... Rc1+ {[%emt 0:01:03]} 43. Kg2 {[%emt 0:00:06]} a5 {[%emt 0:00:16]} 44. Rxa5 {[%emt 0:04:10]} Rb1 {[%emt 0:00:01]} 45. Rb5 {[%emt 0:02:42]} Rxb3 {[%emt 0:00:12]} 46. Rc2 {[%emt 0:00:17]} Rb1 {[%emt 0:02:04]} 47. Rb7 {[%emt 0:02:37] Hoping for Rcc7.} Kh6 {[%emt 0:02:28]} 48. d5 {[%emt 0:00:56]} b3 {[%emt 0:03:25]} 49. Rc6 {[%emt 0:00:18]} Rb2 $2 {[%emt 0:06:10] [#] This costs Black the game.} (49... Rxc6 $16 50. dxc6 Kg6) 50. Rxf6+ $1 {[%emt 0:00:08]} gxf6 {[%emt 0:00:01] KR-KR} 51. d6 {[%emt 0:00:01]} Rd2 {[%emt 0:02:31]} 52. Rxb3 {[%emt 0:00:18]} Rxd6 $2 {[%emt 0:00:02]} (52... f5 {was called for.} 53. Rb6 Kg7) 53. g4 {[%emt 0:00:06]} Kg6 {[%emt 0:01:59]} 54. Rb5 {[%emt 0:00:13] Inhibits h5.} Ra6 {[%emt 0:01:47]} 55. h4 {[%emt 0:00:14]} Ra4 {[%emt 0:00:23]} 56. Rb6 {[%emt 0:00:48]} Kg7 {[%emt 0:01:07]} 57. Kg3 {[%emt 0:00:21]} Rc4 {[%emt 0:00:02]} 58. Rb7+ {[%emt 0:01:24]} Kh6 {[%emt 0:01:00]} 59. Rd7 {[%emt 0:00:57]} Rc1 {[%emt 0:00:32]} 60. Kg2 {[%emt 0:00:52] Prevents Rg1+.} Rc5 {[%emt 0:01:57]} 61. Rd4 {[%emt 0:00:21]} Re5 {[%emt 0:00:01]} 62. Kg3 {[%emt 0:00:01]} Kg6 {[%emt 0:01:08]} 63. Rd6 {[%emt 0:01:24]} Kf7 {[%emt 0:00:44]} 64. Kf4 {[%emt 0:00:06] And now g5 would win.} h5 {[%emt 0:01:19]} (64... Re7 $142 65. Rb6 h5 66. gxh5 Kg7) 65. g5 {[%emt 0:00:10] Weighted Error Value: White=0.17 (very precise) /Black=0.43} 1-0

[Event "Nakhchivan Open 2022"]
[Site "Nakhchivan"]
[Date "2022.05.12"]
[Round "7.6"]
[White "Davudov, Tunar"]
[Black "Mahdavi, Reza"]
[Result "1-0"]
[ECO "B45"]
[WhiteElo "1816"]
[BlackElo "2303"]
[Annotator "TA"]
[PlyCount "107"]
[EventDate "2022.05.08"]
[EventType "swiss"]
[EventCountry "AZE"]
[SourceTitle "playchess.com"]
[Source "ChessBase"]
[SourceQuality "1"]
[TimeControl "5400+30"]

{[%evp 18,107,0,0,7,0,27,22,23,10,12,9,4,0,0,0,0,0,23,0,44,46,84,65,66,-25,-47,-100,-105,-147,-147,-132,-79,-110,-62,-114,-119,-110,-97,-99,-106,-241,163,145,135,135,137,106,126,98,116,115,132,124,217,101,85,94,246,235,317,289,534,396,413,407,3583,352,321,309,383,354,387,371,696,674,1397,1262,6283,6227,5289,755,29988,29989,29989,29990,29990,29991,29994,29988,29991,29992]} 1. e4 {[%emt 0:05:57]} c5 {[%emt 0:00:04]} 2. Nf3 {[%emt 0:00:05]} e6 {[%emt 0:00:05]} 3. d4 {[%emt 0:00:11]} cxd4 {[%emt 0:00:10]} 4. Nxd4 {[%emt 0:00:10]} Nc6 {[%emt 0:00:05]} 5. Nc3 {[%emt 0:00:11]} Nf6 {[%emt 0:00:05]} 6. Be3 {[%emt 0:01:18]} Bb4 {[%emt 0:00:08]} 7. Bd3 {[%emt 0:07:02]} d5 {[%emt 0:01:54]} 8. exd5 {[%emt 0:05:52]} Nxd5 {[%emt 0:03:08]} 9. Nxc6 {[%emt 0:00:29]} bxc6 {[%emt 0:00:03]} 10. Bd2 {[%emt 0:00:42]} Bd6 {[%emt 0:05:27] [#] B45: Sicilian Four Knights.} 11. O-O $146 {[%emt 0:01:10]} ({Predecessor:} 11. Nxd5 cxd5 12. O-O O-O 13. Qh5 g6 14. Qh6 Be5 15. c3 Bg7 16. Qe3 e5 17. Bc2 Ba6 18. Rfe1 {0-1 (28) Xie,B (1998)-Koziol,K (2276) Chess.com INT 2021}) 11... Nb4 {[%emt 0:03:09]} (11... Qh4 12. g3 Qd8 13. Qg4 $16) 12. Be4 {[%emt 0:03:03][%cal Oc3b5]} Ba6 {[%emt 0:01:51] Against Nb5. The position is equal.} 13. a3 {[%emt 0:01:37]} Nd5 {[%emt 0:00:46]} (13... Qh4 $2 14. g3 Qe7 15. axb4 $18) 14. Re1 {[%emt 0:03:16] Black should prevent Qh5.} O-O $1 {[%emt 0:00:15]} (14... Qh4 $2 15. g3 Qe7 16. Qg4 $18) 15. Qf3 {[%emt 0:03:22]} Qc7 {[%emt 0:01:26]} 16. h3 {[%emt 0:04:32]} Rab8 {[%emt 0:04:05]} 17. b4 {[%emt 0:15:54]} (17. Qh5 f5 18. Bxd5 exd5 $15) 17... Rbd8 {[%emt 0:03:18]} 18. Na4 {[%emt 0:06:01]} (18. Qh5 Nf6 19. Qg5 c5 $15) 18... Qb8 {[%emt 0:05:25]} 19. Rac1 {[%emt 0:03:50]} (19. Qh5 Nf6 20. Qd1 Be5 $15) 19... e5 {[%emt 0:05:04]} 20. c4 {[%emt 0:02:49]} Ne7 {[%emt 0:00:23]} 21. Bc3 {[%emt 0:14:13]} (21. Bxc6 Nxc6 22. Qxc6 Bb7 $11) (21. Bg5 $14 f6 22. Bh4) 21... f5 $1 $11 {[%emt 0:03:50]} 22. Bxc6 {[%emt 0:04:54]} (22. Bb1 $1 $15) 22... e4 $17 {[%emt 0:02:55]} 23. Bxe4 {[%emt 0:00:46]} fxe4 {[%emt 0:00:02]} 24. Qxe4 {[%emt 0:00:08]} Ng6 {[%emt 0:01:13]} ({Black should play} 24... Bb7 25. Qg4 Ng6) 25. c5 {[%emt 0:02:37]} Bh2+ {[%emt 0:00:09] This bishop pair is nice.} 26. Kh1 {[%emt 0:00:07]} Bb5 {[%emt 0:00:46]} 27. Nb2 {[%emt 0:01:23]} Qc7 {[%emt 0:02:17] White must now prevent ...Bc6.} 28. Rcd1 {[%emt 0:02:19]} Rxd1 $1 {[%emt 0:01:33]} 29. Rxd1 {[%emt 0:01:13]} (29. Nxd1 $17 Bf4 30. Qe6+ Qf7 31. Qxf7+ Kxf7 32. g3) 29... Bc6 $4 {[%emt 0:02:28][%mdl 8192]} (29... Rxf2 $19 {avoids the disaster. ...Bc6 is the strong threat.} 30. Qd5+ Kh8) 30. Qc4+ $1 $18 {[%emt 0:00:29][%mdl 1024] White has strong compensation.} Kh8 {[%emt 0:00:02]} 31. b5 {[%emt 0:00:46] The board is on fire.} Bb7 {[%emt 0:10:53]} 32. c6 {[%emt 0:00:23]} Bc8 {[%emt 0:00:02] Inhibits Rd7.} 33. Nd3 {[%emt 0:04:42]} Bd6 {[%emt 0:00:02]} 34. Nc5 {[%emt 0:02:09]} Qe7 {[%emt 0:06:20] Against Ne6} 35. Re1 {[%emt 0:02:03] White is much more active.} Qc7 {[%emt 0:02:22]} (35... Qf7 $16 {was worth a try.} 36. Qxf7 Rxf7) 36. Ne6 {[%emt 0:00:34]} (36. Ne4 $18 {has better winning chances.} Be5 37. Bxe5 Qxe5 38. Qc5) 36... Bxe6 $16 {[%emt 0:00:06]} 37. Qxe6 {[%emt 0:00:04]} Be7 $2 {[%emt 0:04:51]} (37... Rxf2 $16 38. Qd7 Rf7 39. Qxc7 (39. Re8+ $2 Nf8 $19) 39... Bxc7) 38. Qe3 $40 {[%emt 0:02:06][%mdl 128] White goes for the king.} a6 {[%emt 0:04:03]} 39. a4 {[%emt 0:00:25] And now Qd4 would win.} (39. bxa6 Qxc6 40. a7 Bc5 $16) 39... Rb8 $2 {[%emt 0:01:46]} (39... Bh4 {is a better defense.}) 40. Qd3 {[%emt 0:00:45]} Rd8 {[%emt 0:03:05]} 41. Qc4 {[%emt 0:00:26]} Bh4 {[%emt 0:00:21]} (41... axb5 $142 42. axb5 Rc8) 42. Qc5 $2 {[%emt 0:00:39]} (42. b6 Qc8 43. Qf7) 42... Be7 {[%emt 0:01:09]} 43. Qf5 {[%emt 0:00:41]} Bf8 {[%emt 0:02:58]} 44. g3 {[%emt 0:00:27]} axb5 {[%emt 0:01:15]} 45. axb5 {[%emt 0:00:01]} Rb8 $2 {[%emt 0:00:01]} (45... Ra8 46. Rd1 Ne7) 46. Qd7 {[%emt 0:01:01]} Qb6 {[%emt 0:00:01]} 47. c7 {[%emt 0:00:35]} Qb7+ {[%emt 0:01:52]} 48. Kg1 {[%emt 0:00:03][%cal Oc3g7] Bxg7+! would kill now.} Rc8 {[%emt 0:00:03] [#]} 49. b6 {[%emt 0:00:15]} (49. Bxg7+ $142 $1 {[%mdl 512]} Kg8 {[#]} (49... Bxg7 50. Re8+) 50. b6 $1 (50. Bxf8 Rxc7 51. Qg4 Kxf8 $16) 50... Bxg7 51. Re8+ Rxe8 52. Qxe8+ Nf8 53. Qb8) 49... Be7 {[%emt 0:00:49]} 50. Rxe7 {[%emt 0:00:48] White mates.} Nxe7 {[%emt 0:00:07]} 51. Qxe7 {[%emt 0:00:04][%csl Gc3][%cal Re7g7]} Rg8 {[%emt 0:00:01]} 52. Qd7 {[%emt 0:00:21]} h5 {[%emt 0:00:27]} 53. Bxg7+ {[%emt 0:00:05]} Kh7 {[%emt 0:00:05]} 54. Be5+ {[%emt 0:00:10] Weighted Error Value: White=0.33/Black=0.63} 1-0

[Event "Nakhchivan Open 2022"]
[Site "Nakhchivan"]
[Date "2022.05.13"]
[Round "8.1"]
[White "Rasulov, Vugar"]
[Black "Shahaliyev, Ismayil"]
[Result "1/2-1/2"]
[ECO "D38"]
[WhiteElo "2445"]
[BlackElo "2386"]
[Annotator "TA"]
[PlyCount "47"]
[EventDate "2022.05.08"]
[EventType "swiss"]
[EventCountry "AZE"]
[SourceTitle "playchess.com"]
[Source "ChessBase"]
[SourceQuality "1"]
[TimeControl "5400+30"]

{[%evp 25,47,20,20,0,0,0,0,0,0,0,0,-12,-2,-10,0,0,0,0,0,0,0,0,-19,-22]} 1. d4 {[%emt 0:01:02]} Nf6 {[%emt 0:00:10]} 2. c4 {[%emt 0:00:22]} e6 {[%emt 0:00:29]} 3. Nf3 {[%emt 0:00:16]} d5 {[%emt 0:00:07]} 4. Nc3 {[%emt 0:00:24]} Bb4 {[%emt 0:00:08]} 5. Bg5 {[%emt 0:00:33]} Nbd7 {[%emt 0:00:16]} 6. cxd5 {[%emt 0:00:06]} exd5 {[%emt 0:00:04]} 7. Qc2 {[%emt 0:00:04]} c5 {[%emt 0:01:44]} 8. e3 {[%emt 0:01:18]} Qa5 {[%emt 0:00:19]} 9. Bd3 {[%emt 0:00:34]} c4 {[%emt 0:00:38]} 10. Bf5 {[%emt 0:00:10]} O-O {[%emt 0:00:03]} 11. O-O {[%emt 0:00:45]} Re8 {[%emt 0:00:04]} 12. Nd2 {[%emt 0:01:18]} g6 {[%emt 0:00:41]} 13. Bxd7 {[%emt 0:00:05]} Nxd7 {[%emt 0:00:05][%cal Bf6d7,Bd7b6,Bb6a4][%mdl 32] The position is equal.} 14. h4 {[%emt 0:03:32] D38: Queen's Gambit Declined: Ragozin Defence (4 Nf3 Bb4).} f6 {[%emt 0:10:20]} 15. Bf4 {[%emt 0:03:37][%cal Of4c7]} Bxc3 {[%emt 0:00:14]} 16. bxc3 {[%emt 0:00:17][%cal Oh4h5]} Nb6 {[%emt 0:00:06]} 17. f3 {[%emt 0:03:03]} Qa4 {[%emt 0:02:53]} 18. Qc1 {[%emt 0:01:33]} Bf5 {[%emt 0:01:46]} 19. Re1 {[%emt 0:06:00]} Qc6 {[%emt 0:07:48] [#]} 20. a4 $146 {[%emt 0:03:48]} ({Predecessor:} 20. Nf1 Re7 21. Ng3 Bd3 22. Nh1 h6 23. Bxh6 Rh7 24. Bf4 g5 25. Bh2 Rxh4 26. Nf2 {1-0 (51) Mekhitarian,K (2487)-Cubas,J (2536) Santos 2011}) 20... Nxa4 {[%emt 0:02:26]} 21. e4 $1 {[%emt 0:00:38]} Bd7 {[%emt 0:00:09]} 22. e5 {[%emt 0:05:48]} b5 {[%emt 0:06:04] Hoping for ...a5.} 23. Nf1 {[%emt 0:00:09]} a5 {[%emt 0:02:26] [#] ...b4 is the strong threat.} 24. Ne3 {[%emt 0:00:14] An uneventful encounter.  Weighted Error Value: White=0.03 (flawless) /Black=0.01 (flawless)} 1/2-1/2

[Event "Nakhchivan Open 2022"]
[Site "Nakhchivan"]
[Date "2022.05.13"]
[Round "8.2"]
[White "Asgari, Morteza"]
[Black "Azadaliyev, Jahandar"]
[Result "1/2-1/2"]
[ECO "B12"]
[WhiteElo "2244"]
[BlackElo "2088"]
[Annotator "TA"]
[PlyCount "71"]
[EventDate "2022.05.08"]
[EventType "swiss"]
[EventCountry "AZE"]
[SourceTitle "playchess.com"]
[Source "ChessBase"]
[SourceQuality "1"]
[TimeControl "5400+30"]

{[%evp 9,71,-39,-39,-56,-85,-82,-1,0,38,20,40,0,43,63,65,64,58,58,57,61,72,29,81,75,69,71,75,69,68,54,145,148,133,131,147,151,256,259,264,242,249,246,249,0,0,0,0,0,397,335,335,266,347,340,495,480,490,481,29991,-558,1084,0,0,-413]} 1. e4 {[%emt 0:00:06]} c6 {[%emt 0:00:21]} 2. d4 {[%emt 0:00:12]} d5 {[%emt 0:00:14]} 3. e5 {[%emt 0:00:13]} Bf5 {[%emt 0:00:51]} 4. h4 {[%emt 0:00:22]} h5 {[%emt 0:00:57]} 5. Bg5 {[%emt 0:00:42]} Qb6 {[%emt 0:00:14]} 6. Bd3 {[%emt 0:00:11] B12: Caro-Kann: Advance Variation.} Bxd3 {[%emt 0:02:43]} ({Worse is} 6... Qxb2 7. Nd2 Bxd3 8. cxd3 $17) 7. Qxd3 {[%emt 0:00:13][%cal Oe5e6]} e6 {[%emt 0:00:42]} (7... Qxb2 $17 8. Qc3 Qxc3+ 9. Nxc3 e6) 8. Nd2 $11 {[%emt 0:00:11][%cal Bb1d2,Bd2c4,Bc4e3][%mdl 32] Active counter play!} Nd7 {[%emt 0:00:47]} 9. Ngf3 {[%emt 0:00:59]} Ne7 {[%emt 0:02:41]} 10. c4 {[%emt 0:04:26]} Qa6 {[%emt 0:02:59]} 11. O-O {[%emt 0:04:47]} Nf5 {[%emt 0:02:22]} 12. Qc3 {[%emt 0:06:34] Against Bb4} dxc4 {[%emt 0:06:21]} 13. Nxc4 {[%emt 0:00:35]} Nb6 {[%emt 0:01:08]} 14. Ne3 {[%emt 0:03:20]} Ne7 {[%emt 0:10:00]} 15. a3 {[%emt 0:03:43]} Ned5 {[%emt 0:06:40]} (15... O-O-O $11) 16. Qc2 {[%emt 0:01:00]} Be7 {[%emt 0:07:22]} 17. Bxe7 {[%emt 0:03:48]} Nxe7 {[%emt 0:00:18]} 18. Ng5 {[%emt 0:00:28]} Rd8 {[%emt 0:06:23]} 19. Rfd1 {[%emt 0:11:10] [#]} Ned5 $146 {[%emt 0:05:52]} ({Black should try} 19... Nbd5 $14) ({Predecessor:} 19... Nbd5 20. Nc4 Nf5 21. Ne4 O-O 22. g3 Nc7 23. Ncd6 Nxd6 24. exd6 Ne8 25. d7 Nf6 26. Nxf6+ gxf6 {1-0 (58) Heimann,A (2578)-Repka,C (2475) Balatonszarszo 2017}) 20. Ne4 $16 {[%emt 0:06:24]} Nxe3 {[%emt 0:01:34]} 21. fxe3 {[%emt 0:00:30] Threatens to win with Rf1.} Nd5 {[%emt 0:00:55]} 22. Re1 {[%emt 0:09:40]} O-O {[%emt 0:07:01]} (22... Qb6 $16 {might work better.} 23. Nd6+ Rxd6 24. exd6 Nf6) 23. Ng5 $18 {[%emt 0:04:03][%csl Gg5][%cal Rc2h7]} g6 {[%emt 0:00:03][%cal Oc6c5] [#]} 24. Nxe6 {[%emt 0:02:23][%mdl 512]} fxe6 {[%emt 0:00:01]} 25. Qxg6+ {[%emt 0:00:14]} Kh8 {[%emt 0:00:02]} 26. Qxh5+ $2 {[%emt 0:13:21]} (26. e4 $18 Rd7 27. exd5) 26... Kg7 $1 $11 {[%emt 0:00:18]} 27. Qg4+ {[%emt 0:00:24]} Kh7 {[%emt 0:00:10] And now ...Qd3 would win.} 28. Qh5+ {[%emt 0:19:59]} Kg8 $2 {[%mdl 8192]} (28... Kg7 $11 {and Black has nothing to worry.}) 29. Qg6+ $18 Kh8 30. Qh6+ Kg8 31. e4 {The board is on fire.} Nf4 {Against Qg6+} (31... Qb6 $142) 32. Re3 {[#] Strongly threatening Rg3+.} Ne2+ 33. Kh2 Nf4 {Prevents Qg6+.} (33... Qc4 $18 34. Rd1 Rd7) 34. Ree1 $4 {[%mdl 8192]} (34. Rg3+ {was the only winning move.} Kf7 35. Qh7+ Ke8 36. Rg7 Rxd4 37. Rc7 Qxa3 38. Rxa3 Ng6 39. Rxa7 Rf4 40. Ra8+ Rd8 41. Rxd8+ Kxd8 42. Qd7#) 34... Nd5 $4 {[%mdl 8192]} 35. Kg1 $2 (35. Qg6+ $18 Kh8 36. exd5) 35... Nf4 $11 {aiming for ...Rd7.} 36. Rf1 $2 {[%mdl 40960] What a bad dream for White.  Weighted Error Value: White=0.52/Black=0.78. An unexpected result.} (36. Kh2 $11 Rd7 37. Re3 (37. Rf1 $2 Rh7 $19)) 1/2-1/2